bitfinex/quotes_ETHUSD_20251006
["timestamp","ask_amount","ask_price","bid_price","bid_amount"]
[1759760967500,0.4594,4661.9,4660.7,0.75641466]
[1759760967873,2.14509093,4661.9,4660.9,0.75641466]
[1759760968071,0.002,4662.0,4661.0,2.446]
[1759760968283,2.14515189,4661.7,4661.0,2.446]
[1759760968467,0.002,4662.0,4661.0,3.20241466]
[1759760968673,0.002,4662.0,4661.4,0.75641466]
[1759760968967,0.002,4662.0,4661.5,0.31710348]
[1759760969173,0.002,4662.0,4661.7,0.75641466]
[1759760969605,0.002,4662.0,4661.8,0.4548]
[1759760969803,0.002,4662.0,4661.8,4.46316797]
[1759760969999,0.002,4662.0,4661.9,0.4548]
[1759760970198,0.002,4662.0,4661.9,0.562]
[1759760970779,0.002,4662.0,4661.9,0.1072]
[1759760971025,0.002,4662.0,4661.9,2.5532]
[1759760971191,2.14700214,4662.0,4661.9,0.1072]
[1759760971390,2.60640214,4662.0,4661.9,0.1072]
[1759760972204,0.002,4662.0,4661.9,0.1072]
[1759760973007,0.002,4662.0,4661.9,2.5532]
[1759760973206,0.002,4662.0,4661.9,3.25642]
[1759760973604,0.002,4662.0,4661.9,2.80852]
[1759760973928,0.002,4662.0,4661.9,0.36252]
[1759760974220,0.002,4662.0,4661.9,2.5532]
[1759760975014,0.002,4662.0,4661.9,4.59104815]
[1759760975189,0.002,4662.0,4661.9,7.85730163]
[1759760975392,0.002,4662.0,4661.9,8.49090163]
[1759760975618,0.002,4662.0,4661.9,9.63015008]
[1759760975921,0.002,4662.0,4661.9,11.82015008]
[1759760976117,0.002,4662.0,4661.9,9.63015008]
[1759760976285,0.002,4662.8,4662.7,2.14468012]
[1759760976480,0.002,4662.8,4662.7,8.0416336]
[1759760976687,0.002,4662.8,4662.7,27.12757795]
[1759760976894,0.002,4662.8,4662.7,27.75409395]
[1759760977094,0.002,4662.8,4662.7,30.46884536]
[1759760977421,0.00497594,4663.8,4663.2,5.17805016]
[1759760977623,0.00497594,4663.8,4663.2,27.19989664]
[1759760977797,0.00497594,4663.8,4663.2,31.39707445]
[1759760977991,0.00497594,4663.8,4663.2,38.80695345]
[1759760978193,0.00497594,4663.8,4663.7,2.77782025]
[1759760978393,0.01414646,4665.7,4664.2,5.17759039]
[1759760978619,0.01414646,4665.7,4664.7,2.77736058]
[1759760978823,0.01414646,4665.7,4664.7,33.46321564]
[1759760979119,0.01414646,4665.7,4664.7,37.14612312]
[1759760979340,0.01414646,4665.7,4664.7,36.31914712]
[1759760979630,0.01414646,4665.7,4664.7,23.13097112]
[1759760979789,0.01414646,4665.7,4664.7,22.88022412]
[1759760979986,0.01414646,4665.7,4664.7,6.43079816]
[1759760980413,0.01414646,4665.7,4664.7,13.57962016]
[1759760980610,0.01414646,4665.7,4664.7,16.02462016]
[1759760981010,0.01414646,4665.7,4664.7,26.18687158]
[1759760981214,0.01414646,4665.7,4664.7,1.4647841]
[1759760981411,0.4554,4665.6,4664.7,2.7871841]
[1759760982233,2.14339958,4665.5,4664.7,2.7871841]
[1759760982417,2.14884195,4665.3,4664.7,5.2311841]
[1759760982736,0.00535133,4665.3,4664.7,2.50944804]
[1759760982914,0.4554,4665.2,4664.7,2.55344804]
[1759760983624,0.4554,4665.2,4664.7,4.95344804]
[1759760983794,0.4606262,4664.8,4664.7,2.4]
[1759760983994,0.4606262,4664.8,4664.7,4.844]
[1759760984193,0.4606262,4664.8,4664.1,0.10800637]
[1759760984612,0.4606262,4664.8,4664.2,2.444]
[1759760984812,0.4554,4664.7,4663.0,0.32365348]
[1759760985025,2.14403549,4664.2,4662.8,4.5446333]
[1759760985348,0.0052262,4664.8,4663.0,2.4]
[1759760985349,2.59944758,4664.1,4663.0,2.4]
[1759760985511,0.4554,4664.1,4663.0,2.4]
[1759760985709,0.4554,4664.1,4663.0,0.32365348]
[1759760986009,0.4554,4664.1,4662.7,0.43536941]
[1759760986202,2.14442483,4663.3,4662.8,1.66]
[1759760986397,0.4554,4663.2,4662.9,1.66]
[1759760986609,0.4554,4663.2,4662.1,0.32365348]
[1759760986810,2.14450178,4663.1,4662.1,0.32365348]
[1759760987124,2.5998579,4663.2,4662.1,0.32365348]
[1759760987423,0.4554,4663.2,4662.2,2.444]
[1759760987606,2.59985419,4663.2,4662.3,0.27676535]
[1759760987814,2.59985419,4663.2,4662.1,0.43173283]
[1759760987815,0.4554,4663.2,4662.1,0.32365348]
[1759760988129,0.4554,4663.2,4660.7,0.74170582]
[1759760988130,2.14475766,4662.6,4662.2,0.392]
[1759760988304,2.60015766,4662.6,4662.2,0.392]
[1759760988503,2.60015766,4662.6,4661.7,0.32365348]
[1759760988504,0.4554,4662.5,4661.8,0.10754153]
[1759760988708,2.60018459,4662.5,4661.9,4.844]
[1759760989018,2.60018459,4662.5,4661.7,0.74929252]
[1759760989019,2.14492995,4662.2,4662.0,2.444]
[1759760989228,0.4554,4662.1,4661.3,0.43721625]
[1759760989401,0.4554,4662.1,4661.3,0.31608697]
[1759760989728,2.14533025,4661.3,4660.4,0.32365348]
[1759760989927,2.14543662,4661.1,4660.4,0.43725778]
[1759760990228,2.14501689,4662.0,4660.5,2.76765348]
[1759760990429,0.4554,4662.3,4661.0,0.1072]
[1759760990735,2.14500214,4662.0,4661.9,0.1072]
[1759760990934,2.14500214,4662.0,4661.9,2.5512]
[1759760991133,2.60040214,4662.0,4661.9,2.5512]
[1759760991739,2.60040214,4662.0,4661.9,0.1072]
[1759760991938,0.4554,4662.0,4661.7,0.1072]
[1759760992140,0.71543034,4662.0,4661.7,0.1072]
[1759760992367,0.4554,4662.0,4661.7,0.1072]
[1759760992565,2.14509416,4661.8,4661.7,0.1072]
[1759760992872,2.60049416,4661.8,4661.7,0.1072]
[1759760993469,2.14537029,4661.2,4661.1,0.233]
[1759760993669,2.14543824,4661.1,4660.3,0.43061589]
[1759760993867,0.4554,4661.2,4660.4,1.367]
[1759760994175,0.1072,4662.1,4660.4,1.367]
[1759760994176,2.1451862,4661.6,4661.0,0.1072]
[1759760994578,0.4554,4661.7,4661.5,0.1072]
[1759760994784,2.1451862,4661.6,4661.5,0.1072]
[1759760994983,2.6005862,4661.6,4661.5,0.1072]
[1759760995536,2.6005862,4661.6,4661.4,0.001]
[1759760995766,2.61980254,4661.5,4661.4,0.001]
[1759760996243,6.10880254,4661.5,4661.4,0.001]
[1759760996943,5.47520254,4661.5,4661.4,0.001]
[1759760997343,7.91920254,4661.5,4661.4,0.001]
[1759760997548,5.47520254,4661.5,4661.4,0.001]
[1759760998075,3.32997032,4661.5,4661.4,0.001]
[1759760998372,3.07520254,4661.5,4661.4,0.001]
[1759760998880,2.60063222,4661.5,4661.4,0.001]
[1759760999296,0.4554,4662.3,4661.4,0.001]
[1759760999459,2.14508585,4661.9,4661.4,0.001]
[1759760999798,0.4554,4662.3,4661.4,0.001]
[1759761000090,0.4574,4662.8,4661.4,0.445]
[1759761000300,2.14493021,4662.2,4661.4,0.445]
[1759761000622,0.002,4662.8,4661.8,0.6336]
[1759761000801,0.002,4662.8,4662.0,3.0336]
[1759761001110,0.002,4662.8,4662.7,2.14468012]
[1759761001254,0.002,4662.8,4662.7,9.40181312]
[1759761001454,0.002,4662.8,4662.7,6.56246143]
[1759761001660,0.002,4662.8,4662.7,4.41778131]
[1759761001956,0.002,4662.8,4662.7,8.06728012]
[1759761002268,0.002,4662.8,4662.7,15.02236812]
[1759761002783,0.0052262,4664.8,4663.0,0.6336]
[1759761002956,0.0052262,4664.8,4663.2,4.54441327]
[1759761003300,0.0052262,4664.8,4663.4,3.0336]
[1759761003592,0.0052262,4664.8,4663.6,3.0336]
[1759761003906,0.0052262,4664.8,4663.6,5.17786097]
[1759761004109,0.0052262,4664.8,4663.8,2.14415946]
[1759761004257,0.0052262,4664.8,4663.9,4.845]
[1759761004453,0.0052262,4664.8,4664.0,2.445]
[1759761004993,0.0052262,4664.8,4664.1,2.445]
[1759761005563,0.0052262,4664.8,4664.7,0.1072]
[1759761005763,2.14894082,4664.8,4664.7,0.1072]
[1759761006085,2.60164082,4664.8,4664.7,0.1072]
[1759761006301,3.07616909,4664.8,4664.7,0.1072]
[1759761006790,2.62346909,4664.8,4664.7,0.1072]
[1759761006993,0.0052262,4664.8,4664.7,0.1072]
[1759761007800,0.0052262,4664.8,4664.7,1.1718]
[1759761007971,0.0052262,4664.8,4664.7,5.924266]
[1759761008158,0.0052262,4664.8,4664.7,10.76866]
[1759761008361,0.0052262,4664.8,4664.7,11.84404058]
[1759761008787,0.0052262,4664.8,4664.7,11.21044058]
[1759761008988,0.0052262,4664.8,4664.7,6.479766]
[1759761009296,0.0052262,4664.8,4664.7,2.5072]
[1759761009475,0.0052262,4664.8,4663.2,0.431]
[1759761009682,2.14384375,4664.6,4663.2,0.431]
[1759761009989,0.4579262,4664.8,4663.3,1.051]
[1759761010191,0.4527,4664.7,4663.3,1.051]
[1759761010360,0.4527,4664.7,4663.4,0.14868896]
[1759761010883,0.0052262,4664.8,4663.4,0.57968896]
[1759761011466,0.0052262,4664.8,4663.6,2.4]
[1759761011668,0.0052262,4664.8,4663.8,2.14413447]
[1759761011872,0.0052262,4664.8,4663.6,2.4]
[1759761012091,0.0052262,4664.8,4664.0,2.4]
[1759761012589,0.0052262,4664.8,4664.1,0.431]
[1759761012795,0.0052262,4664.8,4664.2,4.54395096]
[1759761012970,0.0052262,4664.8,4664.2,0.6336]
[1759761013172,0.0052262,4664.8,4664.3,0.431]
[1759761013384,0.0052262,4664.8,4664.4,0.56086052]
[1759761013583,0.0052262,4664.8,4664.5,2.14381387]
[1759761013889,0.0052262,4664.8,4664.6,2.14380629]
[1759761014082,0.0052262,4664.8,4664.7,2.444]
[1759761014286,0.0052262,4664.8,4664.7,2.875]
[1759761014597,0.0044262,4664.8,4664.7,2.875]
[1759761015495,0.0044262,4664.8,4664.7,11.108853]
[1759761015796,0.0044262,4664.8,4664.7,8.33986058]
[1759761016093,0.0044262,4664.8,4664.7,6.1961]
[1759761016293,0.0044262,4664.8,4664.7,2.6875]
[1759761016596,0.0044262,4664.8,4664.7,5.1315]
[1759761016795,0.0044262,4664.8,4664.7,0.2875]
[1759761017091,0.0044262,4664.8,4664.7,2.231]
[1759761017874,0.4571262,4664.8,4663.4,0.57968896]
[1759761018084,0.0044262,4664.8,4663.5,4.843]
[1759761018379,2.14381896,4664.6,4663.6,2.443]
[1759761018594,2.14376449,4664.7,4663.7,2.443]
[1759761018767,2.14376449,4664.7,4663.8,3.09872983]
[1759761018974,0.0044262,4664.8,4663.8,3.09872983]
[1759761019576,0.0044262,4664.8,4664.7,0.1072]
[1759761019577,2.14814082,4664.8,4664.7,0.1072]
[1759761019898,0.4571262,4664.8,4664.7,0.1072]
[1759761020099,2.60084082,4664.8,4664.7,0.1072]
[1759761021118,0.4571262,4664.8,4664.7,0.1072]
[1759761021269,2.60084082,4664.8,4664.7,0.1072]
[1759761021778,0.0044262,4664.8,4664.6,0.86]
[1759761022186,0.0044262,4664.8,4664.7,0.431]
[1759761022497,0.0044262,4664.8,4664.7,0.1291]
[1759761023073,0.0044262,4664.8,4664.7,0.5601]
[1759761023273,0.0044262,4664.8,4664.7,2.70386058]
[1759761023598,0.0044262,4664.8,4664.7,0.5601]
[1759761024276,0.0044262,4664.8,4664.7,2.70386058]
[1759761024684,0.0044262,4664.8,4664.7,30.23233858]
[1759761024875,0.0044262,4664.8,4664.7,30.5300004]
[1759761025295,1e-08,4664.8,4664.7,30.83234965]
[1759761025672,0.002,4665.2,4665.1,5.17717677]
[1759761025978,0.002,4665.2,4665.1,39.2377304]
[1759761026189,0.002,4665.2,4665.1,40.3023304]
[1759761026589,0.002,4665.2,4665.1,38.0743304]
[1759761026995,0.002,4665.2,4665.1,42.7453304]
[1759761027185,0.002,4665.2,4665.1,5.37666858]
[1759761027510,0.002,4665.2,4665.1,7.72463677]
[1759761027898,0.002,4665.2,4665.1,35.65117677]
[1759761028201,0.002,4665.2,4665.1,38.05117677]
[1759761029091,0.002,4665.2,4664.7,0.1291]
[1759761029291,0.4527,4665.1,4664.8,2.443]
[1759761029492,0.4527,4665.1,4664.2,0.74588128]
[1759761029813,0.4527,4665.1,4664.3,2.443]
[1759761030115,2.59627731,4665.1,4664.3,2.443]
[1759761030426,2.59627731,4665.1,4663.7,0.74588128]
[1759761030427,2.14371099,4664.9,4663.7,0.74588128]
[1759761030592,0.4527,4665.0,4663.8,0.2890108]
[1759761030792,0.4527,4665.0,4663.6,0.74588128]
[1759761030997,0.4527,4664.9,4663.7,2.443]
[1759761031211,0.4527,4664.9,4663.3,3.14588128]
[1759761031212,2.14402891,4664.2,4663.8,2.443]
[1759761031511,2.59673757,4664.1,4663.1,1.16824376]
[1759761031711,0.4527,4664.1,4663.2,4.5874458]
[1759761031913,0.002,4665.2,4663.3,21.24501024]
[1759761032115,0.002,4665.2,4663.5,0.74588128]
[1759761032296,0.4527,4665.1,4663.3,0.57556896]
[1759761032494,2.14396874,4664.3,4663.1,1.16824376]
[1759761032700,0.4527,4664.6,4663.3,2.4]
[1759761033013,0.4288,4665.1,4663.6,2.14425246]
[1759761033211,0.4288,4665.1,4663.7,2.1441861]
[1759761033713,2.14369812,4664.9,4663.5,3.33728626]
[1759761033912,2.14371818,4664.8,4663.6,2.72229257]
[1759761034087,0.002,4665.2,4664.1,0.001]
[1759761034088,0.4288,4664.7,4664.1,0.001]
[1759761034689,2.14391338,4664.4,4664.2,1.714]
[1759761034897,0.4288,4664.3,4664.2,1.714]
[1759761035105,2.57274442,4664.3,4664.2,1.714]
[1759761035488,2.14399039,4664.2,4664.1,0.001]
[1759761035688,2.14399039,4664.2,4664.1,1.545]
[1759761035916,2.59059039,4664.2,4664.1,0.001]
[1759761036491,3.27843132,4664.2,4664.1,0.001]
[1759761039131,3.27763132,4664.2,4664.1,0.001]
[1759761039330,5.67763132,4664.2,4664.1,0.001]
[1759761040315,6.31123132,4664.2,4664.1,0.001]
[1759761040716,6.31123132,4664.2,4661.8,0.001]
[1759761040717,7.74123132,4664.2,4661.8,0.001]
[1759761040925,2.14504815,4661.9,4661.8,0.001]
[1759761041349,2.59164815,4661.9,4661.8,0.001]
[1759761042532,5.03464815,4661.9,4661.8,0.001]
[1759761042829,5.14184815,4661.9,4661.8,0.001]
[1759761043149,8.86464815,4661.9,4661.8,0.001]
[1759761043349,9.55248908,4661.9,4661.8,0.001]
[1759761044256,10.18608908,4661.9,4661.8,0.001]
[1759761044449,23.68758848,4661.9,4661.8,0.001]
[1759761044756,4.96444093,4661.9,4661.8,0.001]
[1759761044968,1.43,4661.9,4661.8,0.001]
[1759761045135,2.14504815,4661.9,4661.8,0.001]
[1759761045336,2.14489488,4662.3,4661.8,0.001]
[1759761045536,0.4466,4662.8,4661.8,0.001]
[1759761046243,0.4466,4663.7,4661.9,0.4563]
[1759761046753,2.14458116,4663.0,4661.9,0.4563]
[1759761046969,2.14458116,4663.0,4662.0,0.2602383]
[1759761047165,0.4466,4663.7,4662.0,0.2602383]
[1759761047342,0.4466,4664.2,4662.1,0.4563]
[1759761047538,2.14427897,4663.6,4662.1,0.4563]
[1759761047835,0.4466,4664.2,4662.3,2.1448519]
[1759761048042,2.14444291,4663.3,4662.4,0.4563]
[1759761048238,0.4466,4664.2,4662.4,2.60111791]
[1759761048562,2.14436003,4663.4,4662.5,2.444]
[1759761048854,0.25905059,4664.1,4661.8,0.001]
[1759761049034,0.4466,4663.3,4661.9,2.444]
[1759761049659,0.4466,4663.3,4661.8,0.001]
[1759761049954,2.14496688,4662.1,4661.8,0.001]
[1759761050261,0.4466,4663.3,4661.8,0.4573]
[1759761050467,0.4466,4664.5,4662.4,2.14480894]
[1759761050757,0.4466,4664.5,4662.5,0.67078089]
[1759761050758,2.14426924,4663.6,4662.5,0.67078089]
[1759761050960,0.4466,4664.4,4661.9,0.4563]
[1759761050961,0.4466,4663.8,4661.9,0.4563]
[1759761051256,2.14394442,4664.3,4662.6,2.444]
[1759761051453,2.4,4664.3,4662.6,2.444]
[1759761051633,2.14439839,4663.4,4662.6,2.444]
[1759761051854,0.4466,4664.4,4662.7,0.4563]
[1759761052175,2.65904241,4664.3,4662.7,0.4563]
[1759761052389,2.14440649,4663.3,4662.7,0.4563]
[1759761052590,2.14462152,4662.9,4662.8,2.444]
[1759761052792,2.14467684,4662.8,4662.5,2.444]
[1759761053088,2.14462761,4662.9,4662.6,0.001]
[1759761053258,0.4466,4663.4,4662.7,0.1072]
[1759761053458,2.14463412,4662.8,4662.7,0.1072]
[1759761053658,2.14468012,4662.7,4662.6,0.001]
[1759761053970,2.14468012,4662.7,4662.6,0.1082]
[1759761054752,2.59128012,4662.7,4662.6,0.1082]
[1759761055158,2.14468012,4662.7,4662.6,0.1082]
[1759761055661,0.87552904,4662.7,4662.6,0.1082]
[1759761055867,2.59128012,4662.7,4662.6,0.1082]
[1759761056066,0.1072,4663.3,4662.6,0.1082]
[1759761056268,4.54440417,4663.3,4662.6,0.1082]
[1759761056468,0.1072,4663.5,4662.6,0.001]
[1759761056673,0.4466,4664.0,4663.2,0.1072]
[1759761056873,0.4466,4664.0,4662.6,0.4573]
[1759761056874,2.14434693,4663.5,4662.8,2.444]
[1759761057063,0.4466,4664.0,4662.6,0.001]
[1759761057274,0.4466,4664.0,4663.2,0.1072]
[1759761057275,2.14440417,4663.3,4663.2,0.1072]
[1759761057489,2.14468012,4662.7,4662.6,0.001]
[1759761058497,0.4466,4663.3,4662.6,0.1082]
[1759761060315,2.14468012,4662.7,4662.6,0.1082]
[1759761060513,2.14458761,4663.0,4662.6,0.1082]
[1759761060691,2.14464289,4662.8,4662.6,0.1082]
[1759761060887,0.4466,4663.8,4662.6,0.4573]
[1759761061103,0.5538,4664.3,4662.7,0.1072]
[1759761061314,0.5538,4664.3,4663.8,0.1072]
[1759761061315,0.4466,4664.3,4663.8,0.1072]
[1759761061483,2.1441283,4663.9,4663.8,0.1072]
[1759761062801,2.5907283,4663.9,4663.8,0.1072]
[1759761063587,2.5899283,4663.9,4663.8,0.1072]
[1759761065522,2.1444561,4663.2,4663.0,2.444]
[1759761065710,2.1444561,4663.2,4663.0,2.97403]
[1759761065906,0.1072,4664.5,4663.1,0.1072]
[1759761066311,2.14450674,4663.1,4662.8,0.4563]
[1759761066503,2.14445827,4663.2,4662.9,2.444]
[1759761066696,2.14445827,4663.2,4663.0,0.1072]
[1759761066932,2.14412472,4664.0,4663.0,0.1072]
[1759761066933,2.14449615,4663.1,4663.0,0.1072]
[1759761067757,0.4509,4664.3,4662.6,2.14571102]
[1759761067919,0.1072,4664.8,4663.0,0.5642]
[1759761068120,0.1072,4665.2,4664.2,0.1072]
[1759761068353,0.00535133,4665.3,4664.2,2.444]
[1759761068354,2.14371792,4664.8,4664.2,2.444]
[1759761068540,2.14362272,4665.0,4664.9,0.1072]
[1759761068757,0.00535133,4665.3,4664.9,0.457]
[1759761068942,0.00535133,4665.3,4665.2,0.1072]
[1759761069125,0.00535133,4665.3,4665.2,2.5512]
[1759761069438,0.00535133,4665.3,4665.2,3.0082]
[1759761070343,0.00535133,4665.3,4665.2,3.30902]
[1759761070658,0.00535133,4665.3,4665.2,5.70902]
[1759761071149,0.00535133,4665.3,4665.2,5.70802]
[1759761071358,0.00535133,4665.3,4665.2,7.85155082]
[1759761072149,0.00535133,4665.3,4665.2,3.26502]
[1759761072332,0.00535133,4665.3,4665.2,7.85155082]
[1759761072529,0.00535133,4665.3,4665.2,5.70802]
[1759761073085,0.00535133,4665.3,4665.2,3.68609594]
[1759761073225,0.00535133,4665.3,4665.2,7.85155082]
[1759761073948,0.00735133,4665.3,4665.2,7.85155082]
[1759761074522,0.00735133,4665.3,4665.2,5.70802]
[1759761074862,0.00735133,4665.3,4665.2,7.85155082]
[1759761075026,0.00735133,4665.3,4665.2,5.70802]
[1759761075644,0.00735133,4665.3,4665.2,7.85155082]
[1759761075845,0.00735133,4665.3,4665.2,3.26502]
[1759761076052,0.00735133,4665.3,4665.2,2.9642]
[1759761076225,0.00735133,4665.3,4665.2,4.9502]
[1759761076425,2.1508362,4665.3,4665.2,2.5072]
[1759761076636,0.00735133,4665.3,4665.2,4.9502]
[1759761076853,0.00735133,4665.3,4665.2,5.4072]
[1759761077161,2.1508362,4665.3,4665.2,0.1072]
[1759761077330,2.58026016,4665.3,4665.2,2.5502]
[1759761077956,2.58026016,4665.3,4664.2,0.457]
[1759761077957,2.14396092,4664.3,4663.6,0.457]
[1759761078182,0.88767529,4665.3,4663.7,2.443]
[1759761078343,2.14392785,4664.4,4663.7,2.443]
[1759761078548,2.14362272,4665.0,4664.9,0.1072]
[1759761078742,0.30310798,4665.2,4664.3,0.1072]
[1759761078955,0.00735133,4665.3,4664.0,0.457]
[1759761078956,2.14362272,4665.0,4664.9,0.1072]
[1759761079157,2.14362272,4665.0,4664.9,0.9702]
[1759761079371,0.00735133,4665.3,4664.9,0.9702]
[1759761079566,0.00735133,4665.3,4664.9,0.863]
[1759761079767,0.00735133,4665.3,4665.0,0.457]
[1759761079955,0.00735133,4665.3,4664.9,0.863]
[1759761079956,2.15084525,4665.3,4664.9,0.863]
[1759761080472,2.15084525,4665.3,4664.9,1.32]
[1759761080847,0.00735133,4665.3,4664.9,1.32]
[1759761081044,0.00735133,4665.3,4665.0,0.457]
[1759761081355,10.01414646,4665.7,4665.3,0.6336]
[1759761081572,10.01414646,4665.7,4665.4,8.42941721]
[1759761081750,10.01414646,4665.7,4665.6,4.54334705]
[1759761081947,10.01414646,4665.7,4665.6,5.00034705]
[1759761082163,10.01414646,4665.7,4665.6,6.02228338]
[1759761082346,10.01414646,4665.7,4665.6,8.82125238]
[1759761082757,10.01414646,4665.7,4665.6,8.46428338]
[1759761082978,10.01414646,4665.7,4665.6,8.90311123]
[1759761083188,10.01414646,4665.7,4665.6,12.66861723]
[1759761083387,10.01414646,4665.7,4665.6,26.46063323]
[1759761083680,10.01414646,4665.7,4665.6,13.37941423]
[1759761084054,10.01414646,4665.7,4665.6,12.93705823]
[1759761084453,10.01414646,4665.7,4665.6,13.39634123]
[1759761084661,10.01414646,4665.7,4665.6,11.96889823]
[1759761084980,10.01414646,4665.7,4665.6,4.31776418]
[1759761085285,10.01414646,4665.7,4665.6,2.88182785]
[1759761085452,10.01414646,4665.7,4665.6,5.28182785]
[1759761085981,10.01414646,4665.7,4665.6,5.3]
[1759761086185,10.01414646,4665.7,4665.6,4.843]
[1759761086693,10.01414646,4665.7,4665.6,2.9]
[1759761087296,10.01414646,4665.7,4665.4,0.43344573]
[1759761087495,10.01414646,4665.7,4665.6,7.77669162]
[1759761087664,10.01414646,4665.7,4665.6,31.44649162]
[1759761087867,10.01414646,4665.7,4665.6,26.69311062]
[1759761088068,10.01334646,4665.7,4665.6,19.39600862]
[1759761088292,10.01334646,4665.7,4665.6,16.95300862]
[1759761088497,10.01334646,4665.7,4665.6,22.34904462]
[1759761088711,10.01334646,4665.7,4665.4,0.42645882]
[1759761089004,10.01334646,4665.7,4665.5,2.443]
[1759761089580,10.01334646,4665.7,4665.6,0.1072]
[1759761089966,10.01334646,4665.7,4665.6,4.9492]
[1759761090798,10.01334646,4665.7,4665.6,2.5072]
[1759761090990,10.01334646,4665.7,4665.6,4.9492]
[1759761091187,10.01334646,4665.7,4665.6,2.5072]
[1759761091369,10.01334646,4665.7,4665.6,5.4062]
[1759761091694,10.01334646,4665.7,4665.6,5.98993831]
[1759761091904,10.01334646,4665.7,4665.6,5.53293831]
[1759761092102,10.01334646,4665.7,4665.6,5.98993831]
[1759761092295,10.01334646,4665.7,4665.6,4.9492]
[1759761092672,10.01334646,4665.7,4665.6,5.4062]
[1759761092982,10.01334646,4665.7,4665.6,2.5492]
[1759761093701,10.01534646,4665.7,4665.6,2.5492]
[1759761095293,10.01534646,4665.7,4665.6,0.1072]
[1759761096282,10.01534646,4665.7,4665.6,2.5492]
[1759761097088,10.01534646,4665.7,4665.6,0.1072]
[1759761097381,10.01534646,4665.7,4665.6,2.5492]
[1759761097787,10.01534646,4665.7,4665.6,3.01856764]
[1759761098003,10.01534646,4665.7,4665.6,3.48196764]
[1759761098406,10.01534646,4665.7,4665.6,3.37476764]
[1759761098596,10.01534646,4665.7,4665.6,2.91136764]
[1759761099407,10.01534646,4665.7,4665.4,2.4]
[1759761099582,10.01534646,4665.7,4665.5,2.442]
[1759761100009,10.01534646,4665.7,4665.3,0.001]
[1759761100500,0.454,4665.6,4665.3,0.001]
[1759761100809,2.14343893,4665.4,4665.3,0.001]
[1759761101009,2.14343893,4665.4,4665.3,2.443]
[1759761101211,2.59743893,4665.4,4665.3,2.443]
[1759761101509,0.454,4665.4,4665.3,2.443]
[1759761101713,2.59743893,4665.4,4665.3,0.001]
[1759761101913,2.59743893,4665.4,4665.3,2.443]
[1759761102085,2.59743893,4665.4,4665.3,0.001]
[1759761102607,2.59743893,4665.4,4665.3,2.443]
[1759761102911,2.59743893,4665.4,4665.3,0.001]
[1759761103082,2.59743893,4665.4,4665.3,2.443]
[1759761103912,10.01534646,4665.7,4665.3,2.443]
[1759761104111,10.01534646,4665.7,4665.4,0.4634]
[1759761104314,10.01534646,4665.7,4665.5,0.29064]
[1759761104615,10.01534646,4665.7,4665.6,2.60674705]
[1759761104996,10.01534646,4665.7,4665.6,16.11149605]
[1759761105387,10.01534646,4665.7,4665.6,2.8634]
[1759761105917,10.01534646,4665.7,4665.6,8.68234705]
[1759761106083,10.01534646,4665.7,4665.6,10.03828854]
[1759761106517,10.01534646,4665.7,4665.6,15.08708454]
[1759761106836,10.01534646,4665.7,4665.6,4.21934149]
[1759761106982,10.01534646,4665.7,4665.6,8.19738805]
[1759761107184,10.01534646,4665.7,4665.6,7.38672805]
[1759761107818,10.01534646,4665.7,4665.6,11.70904105]
[1759761107994,10.01534646,4665.7,4665.6,9.56725205]
[1759761108392,10.01534646,4665.7,4665.6,9.67445205]
[1759761108586,10.01534646,4665.7,4665.6,8.33171257]
[1759761108891,10.01534646,4665.7,4665.6,13.84111457]
[1759761109085,10.01534646,4665.7,4665.6,8.72478557]
[1759761109309,10.01534646,4665.7,4665.6,6.11803852]
[1759761109513,10.01534646,4665.7,4665.6,6.51604352]
[1759761109719,10.01534646,4665.7,4665.6,4.9492]
[1759761110504,10.01534646,4665.7,4665.3,0.001]
[1759761110505,2.14337062,4665.6,4665.3,0.001]
[1759761110835,2.14339299,4665.5,4665.3,0.001]
[1759761111121,2.59739299,4665.5,4665.4,2.442]
[1759761111290,0.454,4665.5,4665.4,2.442]
[1759761111490,10.01534646,4665.7,4665.3,0.001]
[1759761111714,2.14339746,4665.5,4665.3,0.001]
[1759761111933,2.14339746,4665.5,4665.4,2.442]
[1759761112311,2.59739746,4665.5,4665.4,2.442]
[1759761112706,2.14263893,4665.4,4665.3,0.001]
[1759761113022,10.01534646,4665.7,4665.3,2.443]
[1759761113198,0.454,4665.6,4665.3,2.443]
[1759761113522,2.59743709,4665.5,4665.3,2.443]
[1759761114130,2.14343893,4665.4,4665.3,0.001]
[1759761114428,2.59743893,4665.4,4665.3,0.001]
[1759761117536,2.14343441,4665.5,4665.3,0.001]
[1759761117733,2.14334705,4665.6,4665.4,2.442]
[1759761117935,10.01534646,4665.7,4665.4,2.442]
[1759761118239,12.15865014,4665.7,4665.5,2.442]
[1759761118541,12.15865014,4665.7,4665.3,0.001]
[1759761118542,2.14343875,4665.5,4665.3,0.001]
[1759761118844,2.14343875,4665.5,4665.4,2.442]
[1759761120144,12.15865233,4665.7,4665.4,2.442]
[1759761120343,12.15865233,4665.7,4665.3,0.001]
[1759761120344,10.01534646,4665.7,4665.3,0.001]
[1759761120645,10.01534646,4665.7,4665.6,0.1072]
[1759761120808,10.01534646,4665.7,4665.6,0.40856]
[1759761121008,10.01534646,4665.7,4665.6,9.40183705]
[1759761121244,10.01534646,4665.7,4665.6,7.36569]
[1759761121412,10.01534646,4665.7,4665.6,6.18357]
[1759761121614,10.01534646,4665.7,4665.6,8.32691705]
[1759761121815,10.01534646,4665.7,4665.6,6.18357]
[1759761122010,10.01534646,4665.7,4665.6,5.820743]
[1759761122210,10.01534646,4665.7,4665.6,0.1072]
[1759761122453,12.15864757,4665.7,4665.6,2.442]
[1759761122739,10.01534646,4665.7,4665.6,2.442]
[1759761122912,12.15864757,4665.7,4665.6,2.442]
[1759761123106,10.01534646,4665.7,4665.6,2.442]
[1759761123941,12.15865519,4665.7,4665.6,2.442]
[1759761124247,12.15864757,4665.7,4665.6,2.442]
[1759761124748,2.14339299,4665.5,4665.3,0.001]